bitfinex-derivatives/quotes_BTCF0:USTF0_20241110
["timestamp","ask_amount","ask_price","bid_price","bid_amount"]
[1731267517824,0.3608,80356.0,80355.0,0.0482]
[1731267518618,0.3608,80356.0,80347.0,0.18101525]
[1731267518823,0.3608,80356.0,80349.0,0.062169]
[1731267519224,0.3608,80356.0,80350.0,0.18597368]
[1731267520430,0.062165,80355.0,80346.0,0.062171]
[1731267520728,0.062165,80354.0,80346.0,0.24859262]
[1731267520918,0.3608,80356.0,80346.0,0.18642162]
[1731267521125,0.06217,80348.0,80343.0,0.02489181]
[1731267521324,0.062166,80353.0,80343.0,0.02489181]
[1731267521522,0.062167,80351.0,80343.0,0.02489181]
[1731267521727,0.062169,80349.0,80343.0,0.02489181]
[1731267522028,0.3608,80349.0,80343.0,0.02489181]
[1731267522232,0.422969,80349.0,80343.0,0.02489181]
[1731267528433,0.062171,80347.0,80343.0,0.02489181]
[1731267528832,0.062171,80347.0,80341.0,0.15035657]
[1731267528833,0.3608,80349.0,80341.0,0.03151132]
[1731267529033,0.0473,80346.0,80341.0,0.03151132]
[1731267529330,0.3608,80342.0,80341.0,0.03151132]
[1731267529923,0.422974,80342.0,80341.0,0.03151132]
[1731267530728,0.422974,80342.0,80341.0,0.00014616]
[1731267530940,0.3608,80342.0,80330.0,0.0058]
[1731267531235,0.062183,80331.0,80325.0,0.062187]
[1731267531726,0.3608,80335.0,80323.0,0.11884525]
[1731267531727,0.062185,80329.0,80323.0,0.11884525]
[1731267531932,0.00013326,80328.0,80323.0,0.11884525]
[1731267532240,0.00013326,80328.0,80327.0,0.062186]
[1731267532924,0.00013326,80328.0,80324.0,0.02490036]
[1731267533339,0.00013326,80328.0,80325.0,0.18729728]
[1731267535436,0.00013326,80328.0,80322.0,0.00011284]
[1731267535437,0.062189,80323.0,80322.0,0.00011284]
[1731267535633,0.18103425,80323.0,80322.0,0.00011284]
[1731267535932,0.18103425,80323.0,80307.0,0.00766727]
[1731267535933,0.062198,80312.0,80307.0,0.00766727]
[1731267536133,0.422998,80312.0,80307.0,0.00186727]
[1731267536728,0.062201,80309.0,80307.0,0.00186727]
[1731267536926,0.3608,80312.0,80300.0,0.11632]
[1731267536927,0.062201,80307.0,80300.0,0.11648165]
[1731267537337,0.062201,80307.0,80300.0,0.03194394]
[1731267537538,0.062201,80307.0,80301.0,0.062206]
[1731267538235,0.0483,80308.0,80306.0,0.11884525]
[1731267538437,0.3608,80312.0,80306.0,0.11884525]
[1731267538629,0.3608,80317.0,80311.0,0.062198]
[1731267538935,0.3608,80317.0,80307.0,0.18593744]
[1731267538936,0.3608,80317.0,80312.0,0.18104225]
[1731267539238,0.3608,80317.0,80312.0,0.062197]
[1731267541834,0.3608,80317.0,80307.0,0.0883]
[1731267542035,0.109787,80326.0,80314.0,0.062195]
[1731267542235,0.109787,80326.0,80307.0,0.0883]
[1731267542236,0.109787,80326.0,80318.0,0.11884525]
[1731267542627,0.062188,80325.0,80315.0,0.107595]
[1731267545638,0.0476,80326.0,80308.0,0.0622]
[1731267545639,0.062192,80319.0,80308.0,0.0622]
[1731267545836,0.3608,80320.0,80307.0,0.03215101]
[1731267546035,0.3608,80320.0,80300.0,0.1190069]
[1731267546036,0.062202,80307.0,80300.0,0.00016165]
[1731267546634,0.062202,80307.0,80300.0,0.0319837]
[1731267546840,0.3608,80312.0,80300.0,0.06236865]
[1731267547040,0.062199,80311.0,80300.0,0.06236865]
[1731267547242,0.0622,80310.0,80300.0,0.06236865]
[1731267547938,0.0622,80309.0,80300.0,0.06236865]
[1731267549332,0.0622,80309.0,80302.0,0.08711494]
[1731267550340,0.062202,80307.0,80302.0,0.02490994]
[1731267550543,0.3608,80304.0,80302.0,0.02490994]
[1731267550838,0.062202,80307.0,80302.0,0.02490994]
[1731267553335,0.062203,80306.0,80302.0,0.02490994]
[1731267555446,0.3608,80312.0,80302.0,0.02490994]
[1731267555645,0.3608,80304.0,80302.0,0.02490994]
[1731267555946,0.062203,80305.0,80302.0,0.02490994]
[1731267558155,0.0622,80310.0,80302.0,0.02490994]
[1731267558343,0.062201,80308.0,80302.0,0.02490994]
[1731267558939,0.3608,80312.0,80302.0,0.02490994]
[1731267559142,0.3608,80312.0,80302.0,0.14375519]
[1731267559449,0.0318252,80318.0,80302.0,0.14375519]
[1731267559450,0.062199,80310.0,80302.0,0.14375519]
[1731267559836,0.422995,80315.0,80304.0,0.062204]
[1731267560042,0.062198,80312.0,80304.0,0.062204]
[1731267560237,0.3608,80323.0,80308.0,0.11884525]
[1731267560446,0.3608,80323.0,80322.0,0.11884525]
[1731267560745,0.3608,80323.0,80322.0,0.30530712]
[1731267560945,0.3608,80330.0,80324.0,0.062188]
[1731267561144,0.3608,80330.0,80325.0,0.0438]
[1731267561347,0.3608,80330.0,80325.0,0.22982628]
[1731267561656,0.062175,80342.0,80326.0,0.062186]
[1731267561836,0.407,80343.0,80325.0,0.22982628]
[1731267561837,0.52584525,80343.0,80325.0,0.0438]
[1731267562144,0.422979,80336.0,80325.0,0.0438]
[1731267562643,0.3608,80336.0,80325.0,0.0438]
[1731267562836,0.3608,80336.0,80325.0,0.105987]
[1731267564140,0.3608,80336.0,80326.0,0.062186]
[1731267564338,0.3608,80336.0,80326.0,0.24943139]
[1731267565351,0.3608,80336.0,80325.0,0.0438]
[1731267566352,0.11897851,80328.0,80312.0,0.1162]
[1731267566539,0.11897851,80328.0,80314.0,0.03218833]
[1731267566540,0.3608,80315.0,80314.0,0.03218833]
[1731267566741,0.3608,80315.0,80307.0,0.0403]
[1731267567857,0.3608,80315.0,80307.0,0.07155782]
[1731267569247,0.3608,80315.0,80307.0,0.03125782]
[1731267569441,0.3608,80312.0,80305.0,0.02490709]
[1731267569947,0.3608,80312.0,80306.0,0.18619266]
[1731267570352,0.3608,80312.0,80304.0,0.3608]
[1731267571048,0.3608,80312.0,80305.0,0.062202]
[1731267571253,0.3608,80312.0,80306.0,0.062201]
[1731267571945,0.3608,80312.0,80304.0,0.3608]
[1731267572151,0.3608,80312.0,80305.0,0.062203]
[1731267573150,0.3608,80312.0,80306.0,0.062202]
[1731267573955,0.3608,80312.0,80307.0,0.062201]
[1731267574352,0.3608,80312.0,80308.0,0.0622]
[1731267575056,0.062192,80319.0,80309.0,0.062199]
[1731267576059,0.0467,80321.0,80310.0,0.062199]
[1731267578456,0.108891,80321.0,80310.0,0.062199]
[1731267578766,0.108891,80321.0,80297.0,0.00744]
[1731267578949,0.108891,80321.0,80257.0,0.08681629]
[1731267579156,0.3608,80269.0,80232.0,0.00778315]
[1731267579356,0.3608,80269.0,80147.0,0.16128746]
[1731267579357,0.31603007,80202.0,80191.0,0.0620999]
[1731267579559,0.11884525,80190.0,80188.0,0.00112]
[1731267579765,0.36093166,80189.0,80188.0,0.03109446]
[1731267579953,0.36093166,80189.0,80173.0,0.00011902]
[1731267580159,0.3608,80174.0,80173.0,0.00011902]
[1731267580357,0.3608,80174.0,80173.0,0.11611902]
[1731267580662,0.3608,80174.0,80173.0,0.00011902]
[1731267581055,0.47964525,80174.0,80173.0,0.00011902]
[1731267581257,0.47964525,80174.0,80112.0,0.3608]
[1731267581258,0.3742,80173.0,80112.0,0.3608]
[1731267581462,0.3608,80161.0,80130.0,0.11884525]
[1731267581766,0.3608,80149.0,80141.0,0.11884525]
[1731267581968,0.3608,80162.0,80144.0,0.3608]
[1731267582261,0.3608,80169.0,80145.0,0.66444307]
[1731267582466,0.3608,80169.0,80152.0,0.3608]
[1731267582666,0.2296,80169.0,80159.0,0.3608]
[1731267582962,0.2296,80169.0,80160.0,0.48274411]
[1731267582963,0.164,80169.0,80160.0,0.48274411]
[1731267583164,0.164,80169.0,80160.0,0.85698411]
[1731267583370,0.164,80169.0,80161.0,0.37424]
[1731267583553,0.3608,80178.0,80167.0,0.3608]
[1731267583963,0.3608,80178.0,80168.0,0.30320962]
[1731267585561,0.00077166,80189.0,80168.0,0.30320962]
[1731267585765,0.3608,80179.0,80168.0,0.30320962]
[1731267586073,0.3608,80179.0,80169.0,0.11608]
[1731267586567,0.3608,80179.0,80170.0,0.30440646]
[1731267586958,0.3608,80179.0,80170.0,0.11608]
[1731267587159,0.3608,80179.0,80171.0,0.18832646]
[1731267587959,0.3608,80179.0,80172.0,0.11608]
[1731267588366,0.3608,80179.0,80173.0,0.18630166]
[1731267588972,0.3608,80180.0,80173.0,0.18630166]
[1731267589569,0.3608,80180.0,80173.0,0.18500162]
[1731267591064,0.00089166,80189.0,80179.0,0.17920219]
[1731267591265,0.00013166,80189.0,80184.0,0.3608]
[1731267591474,0.00013166,80189.0,80184.0,0.47692]
[1731267591765,0.00013166,80189.0,80185.0,0.18750792]
[1731267593167,0.3608,80186.0,80166.0,0.42032]
[1731267593364,0.3608,80170.0,80167.0,0.11612]
[1731267593568,0.3608,80170.0,80168.0,0.18619209]
[1731267593863,0.3608,80170.0,80167.0,0.11612]
[1731267594067,0.3608,80170.0,80169.0,0.18619209]
[1731267594478,0.3608,80170.0,80167.0,0.11612]
[1731267594668,0.36724,80186.0,80169.0,0.18637129]
[1731267594863,0.36724,80186.0,80168.0,0.735]
[1731267594864,0.3608,80176.0,80173.0,0.17920219]
[1731267595173,0.3608,80176.0,80174.0,0.18637129]
[1731267595877,0.06232,80155.0,80128.0,0.17920219]
[1731267596066,9.956e-05,80154.0,80135.0,0.17920219]
[1731267596269,9.956e-05,80154.0,80145.0,0.03206859]
[1731267596467,9.956e-05,80154.0,80151.0,0.17920219]
[1731267596777,9.956e-05,80154.0,80152.0,0.18694243]
[1731267597579,0.36144,80156.0,80152.0,0.18694243]
[1731267597580,0.00064,80156.0,80152.0,0.18694243]
[1731267597791,0.36144,80157.0,80152.0,0.18694243]
[1731267597973,0.3608,80157.0,80152.0,0.18694243]
[1731267599173,0.3608,80163.0,80152.0,0.18694243]
[1731267599373,0.3608,80163.0,80160.0,0.17920219]
[1731267599577,0.3608,80163.0,80161.0,0.13292]
[1731267599778,0.3608,80163.0,80161.0,0.32121393]
[1731267600266,0.00011537,80164.0,80161.0,0.32121393]
[1731267600467,0.3608,80173.0,80162.0,0.37424]
[1731267600667,0.3608,80173.0,80169.0,0.17920219]
[1731267600874,0.3608,80173.0,80164.0,0.17920219]
[1731267601069,0.3608,80173.0,80170.0,0.18732212]
[1731267601273,0.36144,80180.0,80165.0,0.54812212]
[1731267601474,9.442e-05,80175.0,80171.0,0.18747598]
[1731267601877,9.442e-05,80175.0,80167.0,0.18747598]
[1731267602081,9.442e-05,80175.0,80166.0,0.38270698]
[1731267602082,9.442e-05,80175.0,80172.0,0.18747598]
[1731267602281,9.442e-05,80175.0,80172.0,0.24150819]
[1731267602580,9.442e-05,80175.0,80174.0,0.423105]
[1731267602975,9.442e-05,80175.0,80174.0,0.98422926]
[1731267606185,9.442e-05,80175.0,80174.0,1.11714926]
[1731267606872,9.442e-05,80175.0,80174.0,1.14299422]
[1731267607077,9.442e-05,80175.0,80174.0,1.44299422]
[1731267610686,9.442e-05,80175.0,80174.0,0.88696922]
[1731267610874,9.442e-05,80175.0,80174.0,0.71988922]
[1731267611074,9.442e-05,80175.0,80174.0,0.88696922]
[1731267611485,9.442e-05,80175.0,80174.0,1.38068922]
[1731267619000,0.0058,80191.0,80190.0,0.062292]
[1731267619309,0.0058,80207.0,80206.0,0.06228]
[1731267619592,0.3608,80214.0,80209.0,0.062277]
[1731267619800,0.36144,80214.0,80209.0,0.062277]
[1731267619993,0.00014497,80210.0,80209.0,0.06240068]
[1731267620499,0.00014497,80210.0,80209.0,0.00012368]
[1731267620685,0.00014497,80210.0,80209.0,0.18647545]
[1731267622896,0.00014497,80210.0,80209.0,0.31935545]
[1731267624497,0.0058,80223.0,80209.0,0.31935545]
[1731267624498,0.0058,80223.0,80222.0,0.062267]
[1731267624801,0.0058,80239.0,80237.0,0.062255]
[1731267625099,0.36267123,80240.0,80238.0,0.38192761]
[1731267625100,0.36331123,80240.0,80238.0,0.38192761]
[1731267625307,0.36267123,80240.0,80239.0,0.13288]
[1731267625697,0.36267123,80240.0,80239.0,0.31863029]
[1731267626707,0.00187123,80240.0,80239.0,0.31863029]
[1731267627208,0.00011397,80243.0,80241.0,0.062252]
[1731267627601,0.00011397,80243.0,80242.0,0.18618746]
[1731267628405,0.00011397,80243.0,80242.0,0.31354746]
[1731267628598,0.00011397,80243.0,80242.0,0.12736]
[1731267628798,0.37399397,80243.0,80224.0,0.00112]
[1731267628999,0.3608,80225.0,80222.0,0.02493345]
[1731267629304,0.36144,80234.0,80225.0,0.18580284]
[1731267629509,0.3608,80234.0,80223.0,0.31316284]
[1731267629711,0.3608,80234.0,80226.0,0.18704581]
[1731267629903,0.3608,80234.0,80224.0,0.062265]
[1731267630205,0.3608,80234.0,80227.0,0.18704581]
[1731267630405,0.3608,80234.0,80225.0,0.18704581]
[1731267630714,0.3608,80234.0,80228.0,0.18754357]
[1731267631108,0.3608,80234.0,80226.0,0.12736]
[1731267631608,0.3608,80234.0,80227.0,0.1864927]
[1731267632808,0.062262,80229.0,80222.0,0.02493345]
[1731267633008,0.062262,80229.0,80216.0,0.12736]
[1731267633009,0.3608,80223.0,80216.0,0.12736]
[1731267633209,0.3608,80223.0,80218.0,0.024924]
[1731267633706,0.3608,80223.0,80219.0,0.18699629]
[1731267634206,0.3608,80220.0,80219.0,0.18699629]
[1731267637303,0.3608,80220.0,80219.0,0.21207286]
[1731267637808,0.3608,80228.0,80219.0,0.21207286]
[1731267638899,0.062265,80225.0,80219.0,0.21207286]
[1731267639100,0.062265,80225.0,80209.0,0.14696226]
[1731267639101,0.3608,80221.0,80220.0,5.035e-05]
[1731267639509,0.423068,80221.0,80220.0,5.035e-05]
[1731267639713,0.45357743,80221.0,80220.0,5.035e-05]
[1731267640412,0.86577964,80221.0,80220.0,5.035e-05]
[1731267640712,0.86577964,80221.0,80209.0,0.02760713]
[1731267640713,0.11935513,80216.0,80215.0,0.02535735]
[1731267640908,0.51066456,80216.0,80209.0,0.02760713]
[1731267641208,0.3608,80213.0,80210.0,0.18656283]
[1731267641405,0.3608,80213.0,80209.0,0.05255024]
[1731267641610,0.0305106,80212.0,80209.0,0.05255024]
[1731267641806,0.0305106,80212.0,80210.0,0.18631137]
[1731267643812,0.0305106,80212.0,80210.0,0.24858737]
[1731267644013,0.00324,80212.0,80210.0,0.24858737]
[1731267644213,0.01436702,80211.0,80210.0,0.24858737]
[1731267644909,0.01436702,80211.0,80210.0,0.60938737]
[1731267645104,0.3608,80225.0,80210.0,0.60938737]
[1731267645306,0.3608,80217.0,80211.0,0.12736]
[1731267645806,0.29580228,80217.0,80212.0,0.18676335]
[1731267646015,0.36148,80225.0,80212.0,0.18676335]
[1731267646016,0.3608,80224.0,80212.0,0.18676335]
[1731267646218,0.3608,80224.0,80218.0,0.06227]
[1731267646415,0.36728,80234.0,80218.0,0.06227]
[1731267646627,0.3608,80224.0,80219.0,0.24998556]
[1731267646916,0.3608,80224.0,80213.0,0.18771656]
[1731267647119,0.36732,80234.0,80217.0,0.062271]
[1731267647324,0.3608,80224.0,80220.0,0.18771656]
[1731267647517,0.3608,80224.0,80218.0,0.18771656]
[1731267647715,0.3608,80224.0,80221.0,0.24832155]
[1731267648117,0.36144,80234.0,80222.0,0.062267]
[1731267648318,0.3608,80234.0,80223.0,0.12736]
[1731267648720,0.3608,80226.0,80224.0,0.1878935]
[1731267649219,0.36148,80234.0,80224.0,0.1878935]
[1731267649523,0.3608,80234.0,80224.0,0.1878935]
[1731267650115,0.3608,80226.0,80224.0,0.1878935]
[1731267651615,0.36144,80234.0,80224.0,0.1878935]
[1731267651823,0.3608,80234.0,80229.0,0.062262]
[1731267652215,0.3608,80234.0,80230.0,0.18575577]
[1731267653428,0.3608,80234.0,80232.0,0.062259]
[1731267653717,0.3608,80234.0,80233.0,0.18655156]
[1731267653921,0.00011397,80243.0,80237.0,0.062255]
[1731267654125,0.00011397,80243.0,80238.0,0.12736]
[1731267654315,0.06872166,80242.0,80238.0,0.31391156]
[1731267654518,0.39129644,80241.0,80238.0,0.31391156]
[1731267654718,0.03049644,80240.0,80238.0,0.31391156]
[1731267654911,0.06872443,80240.0,80238.0,0.31391156]
[1731267655322,0.39129644,80239.0,80238.0,0.31391156]
[1731267656019,0.39129644,80239.0,80238.0,0.31199156]
[1731267656225,0.03049644,80239.0,80238.0,0.31199156]
[1731267656412,0.3608,80250.0,80245.0,0.062249]
[1731267656614,0.3608,80250.0,80248.0,0.17901958]
[1731267657021,0.3608,80250.0,80249.0,0.18759529]
[1731267657419,0.53981958,80250.0,80247.0,0.18759529]
[1731267657621,0.53981958,80250.0,80239.0,0.062254]
[1731267657828,0.53981958,80250.0,80240.0,0.18787634]
[1731267658015,0.53981958,80250.0,80248.0,0.18787634]
[1731267658220,0.53981958,80250.0,80248.0,0.12544]
[1731267658421,0.53981958,80250.0,80249.0,0.18787634]
[1731267659727,0.17901958,80250.0,80249.0,0.18787634]
[1731267661032,0.55285958,80250.0,80238.0,0.48736]
[1731267661322,0.17901958,80241.0,80240.0,0.18719863]
[1731267661720,0.17901958,80241.0,80238.0,0.02682886]
[1731267661917,0.17901958,80241.0,80238.0,0.02570886]
[1731267662122,0.17901958,80241.0,80233.0,0.12544]
[1731267662326,0.3608,80236.0,80233.0,0.12544]
[1731267662524,0.01566257,80235.0,80233.0,0.12544]
[1731267662723,0.3608,80236.0,80233.0,0.12544]
[1731267662724,0.01566257,80234.0,80233.0,0.12544]
[1731267662922,0.01566257,80235.0,80233.0,0.12544]
[1731267663115,0.01566257,80234.0,80233.0,0.12544]
[1731267663321,0.01566257,80235.0,80233.0,0.12544]
[1731267664627,0.37646257,80234.0,80227.0,0.0265785]
[1731267664838,0.37646257,80234.0,80215.0,0.12544]
[1731267664839,0.11939321,80228.0,80215.0,0.12544]
[1731267665030,0.11939321,80220.0,80215.0,0.12544]
[1731267665340,0.13505578,80220.0,80217.0,0.02551636]
[1731267665523,0.13505578,80220.0,80212.0,0.0249288]
[1731267665922,0.16556475,80220.0,80216.0,0.02495074]
[1731267666320,0.16556509,80220.0,80216.0,0.02495074]
[1731267666830,0.22528601,80220.0,80216.0,0.02495074]
[1731267667031,0.22528601,80220.0,80212.0,0.0249288]
[1731267667032,0.1947767,80220.0,80212.0,0.0249288]
[1731267667325,0.22528594,80220.0,80212.0,0.0249288]
[1731267667828,0.22528594,80220.0,80213.0,0.02513507]
[1731267668038,0.01566257,80219.0,80218.0,0.06227]
[1731267668327,0.3608,80229.0,80219.0,0.18760693]
[1731267668630,0.3608,80229.0,80218.0,0.12544]
[1731267669033,0.3608,80229.0,80220.0,0.18688888]
[1731267669222,0.3608,80229.0,80219.0,0.18688888]
[1731267669417,0.3608,80229.0,80218.0,0.12544]
[1731267669418,0.3608,80229.0,80221.0,0.18688888]
[1731267669630,0.09276743,80228.0,80212.0,0.1503688]
[1731267669928,0.062265,80226.0,80214.0,0.18713251]
[1731267670137,0.3608,80217.0,80214.0,0.18713251]
[1731267670431,0.3608,80217.0,80212.0,0.0249288]
[1731267670627,0.36144,80229.0,80212.0,0.0249288]
[1731267670818,0.36144,80229.0,80214.0,0.1880177]
[1731267670819,0.03050705,80228.0,80214.0,0.1880177]
[1731267671022,0.03050705,80227.0,80213.0,0.1880177]
[1731267671228,0.03050705,80226.0,80212.0,0.0249288]
[1731267671419,0.36144,80229.0,80214.0,0.1880177]
[1731267671420,0.03050705,80225.0,80214.0,0.1880177]
[1731267671620,0.03050705,80224.0,80214.0,0.1880177]
[1731267671830,0.03050705,80223.0,80213.0,0.1880177]
[1731267672025,0.03050705,80222.0,80212.0,0.0249288]
[1731267672226,0.03050705,80221.0,80214.0,0.18763024]
[1731267672422,0.423062,80229.0,80212.0,0.0249288]
[1731267672423,0.3608,80229.0,80213.0,0.18763024]
[1731267672626,0.03050623,80228.0,80213.0,0.062274]
[1731267672820,0.03050623,80227.0,80213.0,0.062274]
[1731267673130,0.03050577,80226.0,80220.0,0.17911413]
[1731267673427,0.36144,80236.0,80221.0,0.18745553]
[1731267673633,0.03050225,80235.0,80222.0,0.3608]
[1731267673828,0.3608,80230.0,80219.0,0.18792949]
[1731267674024,0.0305034,80229.0,80223.0,0.18792949]
[1731267674223,0.0305034,80229.0,80212.0,0.56616293]
[1731267674224,0.0305034,80228.0,80213.0,0.25020349]
[1731267674435,0.36144,80230.0,80220.0,0.18792949]
[1731267674620,0.3608,80230.0,80219.0,0.18792949]
[1731267675044,0.3608,80230.0,80221.0,0.18582456]
[1731267675342,0.3608,80223.0,80214.0,0.12544]
[1731267675842,0.3608,80223.0,80216.0,0.18719451]
[1731267675843,0.06227,80220.0,80216.0,0.18719451]
[1731267676029,0.17911413,80222.0,80197.0,0.82042]
[1731267676030,0.17911413,80222.0,80209.0,0.12556368]
[1731267676339,0.3608,80215.0,80209.0,0.15036578]
[1731267676836,0.3608,80215.0,80209.0,0.00012368]
[1731267677829,0.3608,80215.0,80210.0,0.02493297]
[1731267678246,0.01691106,80214.0,80210.0,0.02493297]
[1731267678446,0.01691106,80213.0,80210.0,0.02493297]
[1731267678737,0.01691106,80212.0,80210.0,0.02493297]
[1731267678929,0.01691106,80211.0,80210.0,0.02493297]
[1731267680355,0.01691106,80211.0,80210.0,0.21107677]
[1731267680525,0.3608,80223.0,80210.0,0.21107677]
[1731267680730,0.3608,80223.0,80213.0,0.062274]
[1731267681129,0.3608,80223.0,80214.0,0.18662871]
[1731267681328,0.3608,80228.0,80214.0,0.18662871]
[1731267681637,0.062265,80226.0,80214.0,0.18662871]
[1731267682027,0.36144,80228.0,80212.0,0.18606055]
[1731267682229,0.3608,80228.0,80215.0,0.18606055]
[1731267682639,0.062264,80226.0,80213.0,0.18606055]
[1731267682938,0.062264,80226.0,80216.0,0.1870605]
[1731267683133,0.062264,80226.0,80214.0,0.1870605]
[1731267683438,0.062264,80226.0,80217.0,0.1870605]
[1731267683637,0.062264,80226.0,80210.0,0.02493297]
[1731267683830,0.36144,80228.0,80215.0,0.18772844]
[1731267684032,0.3608,80228.0,80213.0,0.18772844]
[1731267684238,0.3608,80228.0,80216.0,0.18772844]
[1731267684431,0.3608,80228.0,80216.0,0.11760269]
[1731267684741,0.3608,80228.0,80217.0,0.1871105]
[1731267684933,0.3608,80218.0,80217.0,0.1871105]
[1731267685138,0.3608,80218.0,80210.0,0.02493297]
[1731267685643,0.3608,80218.0,80211.0,0.1871105]
[1731267686341,0.3608,80218.0,80206.0,0.1472803]
[1731267686545,0.3608,80210.0,80206.0,0.0250803]
[1731267688437,0.3608,80210.0,80206.0,0.05001795]
[1731267689643,0.39131128,80210.0,80206.0,0.05001795]
[1731267690747,0.4074852,80210.0,80206.0,0.05001795]
[1731267691532,0.2469852,80210.0,80206.0,0.05001795]
[1731267691735,0.2922,80252.0,80206.0,0.05001795]
[1731267691736,0.3608,80249.0,80229.0,0.062262]
[1731267691939,0.03823629,80248.0,80246.0,0.11941417]
[1731267692236,0.36148,80252.0,80247.0,0.1222]
[1731267692546,0.03822458,80251.0,80247.0,0.30809532]
[1731267692844,0.36144,80252.0,80247.0,0.1222]
[1731267693033,0.03822405,80251.0,80247.0,0.1222]
[1731267693231,0.36152,80252.0,80247.0,0.1222]
[1731267693436,0.3608,80252.0,80247.0,0.1222]
[1731267697837,0.3608,80252.0,80248.0,0.18802634]
[1731267698038,0.3608,80252.0,80248.0,0.25027334]
[1731267698349,0.3608,80252.0,80249.0,0.062246]
[1731267699438,0.3608,80252.0,80250.0,0.062245]
[1731267699647,0.3608,80252.0,80247.0,0.13942809]
[1731267699846,0.3608,80252.0,80248.0,0.1869344]
[1731267700054,0.00187068,80257.0,80254.0,0.062242]
[1731267700353,0.00187068,80257.0,80255.0,0.062242]
[1731267701643,0.01443897,80256.0,80255.0,0.062242]
[1731267703743,0.01443897,80256.0,80240.0,0.0354]
[1731267703744,0.062245,80251.0,80237.0,0.0249237]
[1731267704049,0.3608,80239.0,80237.0,0.0249237]
[1731267704244,0.01443897,80238.0,80237.0,0.0249237]
[1731267704653,0.04493703,80238.0,80237.0,0.0249237]
[1731267705054,0.08316549,80238.0,80237.0,0.0249237]
[1731267705550,0.0831681,80238.0,80237.0,0.39673145]
[1731267705752,0.3608,80254.0,80237.0,0.70835545]
[1731267705941,0.36331068,80257.0,80256.0,0.062241]
[1731267706144,0.04009618,80257.0,80253.0,0.12216]
[1731267706347,0.3608,80272.0,80256.0,0.18809863]
[1731267706348,0.00068,80272.0,80256.0,0.18809863]
[1731267706546,0.36152,80279.0,80268.0,0.062231]
[1731267706852,0.3608,80279.0,80269.0,0.12216]
[1731267708546,0.3608,80279.0,80269.0,0.14797755]
[1731267708752,0.3608,80279.0,80263.0,0.00156]
[1731267708753,0.3608,80270.0,80263.0,0.00156]
[1731267708949,0.3608,80270.0,80252.0,0.3937]
[1731267708950,0.3608,80270.0,80255.0,0.12216]
[1731267709351,0.3608,80270.0,80259.0,0.18751758]
[1731267709654,0.3608,80270.0,80256.0,0.18751758]
[1731267709845,0.3608,80270.0,80260.0,0.18660711]
[1731267709846,0.03821611,80269.0,80260.0,0.18660711]
[1731267710052,0.03821611,80269.0,80255.0,0.12216]
[1731267710053,0.03821611,80268.0,80255.0,0.12216]
[1731267710253,0.03821611,80267.0,80255.0,0.12216]
[1731267710448,0.3608,80270.0,80257.0,0.18660711]
[1731267710760,0.3608,80270.0,80256.0,0.18660711]
[1731267710761,0.3608,80293.0,80288.0,0.062215]
[1731267710958,0.3608,80305.0,80291.0,0.17888844]
[1731267711456,0.3608,80305.0,80292.0,0.18603357]
[1731267711457,0.3608,80298.0,80292.0,0.18603357]
[1731267711754,0.3608,80298.0,80292.0,0.12212]
[1731267715858,0.01470226,80297.0,80292.0,0.12212]
[1731267716062,0.01470226,80296.0,80292.0,0.12212]
[1731267716252,0.3608,80298.0,80293.0,0.062212]
[1731267716253,0.01470226,80295.0,80293.0,0.062212]
[1731267716448,0.01470226,80294.0,80293.0,0.062212]
[1731267718756,0.01470226,80294.0,80293.0,0.08712225]
[1731267720060,0.01470226,80294.0,80293.0,0.27355999]
[1731267720263,0.3608,80304.0,80300.0,0.062207]
[1731267720454,0.3608,80304.0,80303.0,0.17888844]
[1731267720760,0.3608,80304.0,80294.0,0.17888844]
[1731267721147,0.3608,80304.0,80294.0,0.30773425]
[1731267721355,0.3608,80304.0,80294.0,0.23767984]
[1731267721766,0.3608,80304.0,80294.0,0.11727984]
[1731267722352,0.3608,80304.0,80293.0,0.02683025]
[1731267722557,0.3608,80304.0,80293.0,0.02491025]
[1731267724061,0.3608,80304.0,80293.0,0.08712225]
[1731267724564,0.3608,80304.0,80294.0,0.062211]
[1731267725055,0.3608,80304.0,80293.0,0.02491025]
[1731267725257,0.3608,80304.0,80302.0,0.11911666]
[1731267725562,0.3608,80304.0,80303.0,0.062205]
[1731267726160,0.3608,80304.0,80303.0,0.2481308]
[1731267729259,0.3608,80314.0,80303.0,0.5467258]
[1731267729555,0.03047356,80313.0,80306.0,0.062201]
[1731267729757,0.3608,80314.0,80306.0,0.062201]
[1731267729960,0.3608,80314.0,80312.0,0.11911666]
[1731267732357,0.00186912,80318.0,80312.0,0.11911666]
[1731267732553,0.3608,80316.0,80312.0,0.11911666]
[1731267733065,0.3608,80316.0,80312.0,0.14473054]
[1731267733663,0.062196,80314.0,80312.0,0.02561388]
[1731267733967,0.062196,80314.0,80293.0,0.39927025]
[1731267733968,0.03047338,80313.0,80303.0,0.02465512]
[1731267734160,0.3608,80307.0,80297.0,0.12036]
[1731267734868,0.3608,80302.0,80293.0,0.02491025]
[1731267735061,0.3608,80294.0,80293.0,0.02491025]
[1731267736256,0.0426,80301.0,80293.0,0.02491025]
[1731267736468,0.03047876,80300.0,80293.0,0.02491025]
[1731267736665,0.03047876,80299.0,80293.0,0.02491025]
[1731267736861,0.0426,80301.0,80293.0,0.02491025]
[1731267737064,0.03047835,80300.0,80293.0,0.02491025]
[1731267737669,0.3608,80294.0,80293.0,0.02491025]
[1731267738762,0.3608,80294.0,80279.0,0.062223]
[1731267738763,0.062215,80289.0,80279.0,0.062223]
[1731267738972,0.062215,80289.0,80266.0,0.47991666]
[1731267738973,0.3608,80281.0,80276.0,0.0640929]
[1731267739171,0.3608,80281.0,80276.0,0.08965047]
[1731267739760,0.3608,80281.0,80276.0,0.02742547]
[1731267742873,0.13580933,80280.0,80276.0,0.02742547]
[1731267743072,0.03048633,80279.0,80276.0,0.05047326]
[1731267743268,0.03048633,80279.0,80276.0,0.02491569]
[1731267743471,0.03048633,80279.0,80267.0,0.02491025]
[1731267743675,0.09270933,80279.0,80267.0,0.02491025]
[1731267743976,0.3608,80274.0,80267.0,0.02491025]
[1731267746076,0.3608,80272.0,80261.0,0.03000802]
[1731267746274,0.3608,80272.0,80261.0,0.00467]
[1731267746275,0.3608,80262.0,80261.0,0.00467]
[1731267746879,0.3608,80272.0,80261.0,0.00467]
[1731267747080,0.062231,80269.0,80261.0,0.00467]